bitfinex-derivatives/quotes_SOLF0:USTF0_20250714
["timestamp","ask_amount","ask_price","bid_price","bid_amount"]
[1752471209800,3.46,168.04,168.01,3.36]
[1752471209999,5.9498,168.02,167.97,4.96311896]
[1752471210298,3.42,168.06,167.98,4.52229642]
[1752471210491,5.9498,168.02,168.0,3.4]
[1752471210700,5.9498,168.02,168.01,4.52229642]
[1752471210993,5.9498,168.02,168.01,7.92229642]
[1752471211388,5.9504,168.0,167.95,4.96311896]
[1752471211595,5.19366685,168.03,167.97,3.4]
[1752471211789,5.19366685,168.03,167.98,4.52360064]
[1752471211990,5.9503,168.0,167.99,3.4]
[1752471212189,5.9503,168.0,167.94,4.96311896]
[1752471212190,8.61366685,168.01,167.95,3.4]
[1752471212392,3.42,167.99,167.97,3.4]
[1752471212697,5.951,167.98,167.97,3.4]
[1752471212896,3.42,167.98,167.94,3.4]
[1752471213098,3.42,167.88,167.73,13.08905464]
[1752471213396,5.20247843,167.79,167.74,4.52411836]
[1752471213698,5.20247843,167.81,167.76,3.4]
[1752471213894,5.20247843,167.81,167.73,5.9597]
[1752471214099,5.958,167.79,167.69,5.20247843]
[1752471214296,514.08,167.87,167.71,5.20247843]
[1752471214496,5.9562,167.84,167.79,3.4]
[1752471214993,5.20247843,167.88,167.79,8.60247843]
[1752471215298,5.20247843,167.88,167.8,3.4]
[1752471215493,5.20591043,167.88,167.8,9.3572]
[1752471215694,195.04,167.9,167.81,3.4]
[1752471215894,5.20591043,167.89,167.81,3.4]
[1752471216297,5.20591043,167.87,167.73,3.4]
[1752471216501,5.20591043,167.85,167.76,3.4]
[1752471216699,5.9565,167.83,167.8,3.4]
[1752471217003,5.20591043,167.85,167.76,3.4]
[1752471217300,8.62591043,167.89,167.83,3.4]
[1752471217693,5.20591043,167.89,167.83,3.4]
[1752471217895,8.62591043,167.91,167.83,3.4]
[1752471218098,3.42,167.91,167.83,3.4]
[1752471218302,5.9549,167.87,167.83,5.9562]
[1752471218502,8.62591043,167.91,167.84,3.4]
[1752471218799,5.20591043,167.91,167.71,3.4]
[1752471219099,5.20591043,167.89,167.81,3.4]
[1752471219398,5.9545,167.88,167.84,3.4]
[1752471219899,5.9545,167.88,167.83,5.956]
[1752471219900,5.9545,167.88,167.82,5.9566]
[1752471220096,8.62591043,167.91,167.83,3.4]
[1752471220800,5.9548,167.88,167.83,3.4]
[1752471221202,8.62591043,167.91,167.83,3.4]
[1752471221501,8.62591043,167.89,167.83,3.4]
[1752471222095,5.20591043,167.87,167.85,3.4]
[1752471222707,5.9552,167.86,167.85,3.4]
[1752471223601,5.20591043,167.86,167.83,3.4]
[1752471223804,3.42,167.87,167.8,5.9571]
[1752471224106,3.42,167.87,167.81,3.4]
[1752471225101,5.20591043,167.86,167.77,3.4]
[1752471225502,5.9564,167.83,167.77,3.4]
[1752471225697,5.9564,167.83,167.79,5.9576]
[1752471225903,5.9564,167.83,167.8,3.4]
[1752471226305,5.9567,167.82,167.81,3.4]
[1752471226707,5.20591043,167.82,167.79,3.4]
[1752471226904,8.62591043,167.8,167.77,3.4]
[1752471227101,3.42,167.79,167.77,3.4]
[1752471227504,5.9581,167.78,167.77,3.4]
[1752471227901,5.20591043,167.83,167.78,3.4]
[1752471228204,8.62591043,167.83,167.73,5.20591043]
[1752471228406,3.42,167.82,167.8,3.4]
[1752471228604,3.42,167.8,167.78,3.4]
[1752471229005,191.36,167.86,167.78,3.4]
[1752471229203,8.62591043,167.81,167.78,3.4]
[1752471229403,3.42,167.8,167.78,3.4]
[1752471229804,5.9577,167.79,167.78,3.4]
[1752471231208,8.62591043,167.81,167.72,3.4]
[1752471231412,8.62591043,167.81,167.73,5.9597]
[1752471231603,8.62591043,167.81,167.74,3.4]
[1752471231804,5.20591043,167.79,167.74,3.4]
[1752471232105,5.959,167.76,167.69,3.4]
[1752471232305,5.20591043,167.77,167.69,3.4]
[1752471232506,3.42,167.81,167.74,3.4]
[1752471232718,3.42,167.84,167.78,3.4]
[1752471233011,3.42,167.87,167.78,3.4]
[1752471233203,5.9559,167.85,167.78,3.4]
[1752471233404,5.20648573,167.86,167.78,3.4]
[1752471233901,3.42,167.87,167.78,3.4]
[1752471234102,3.42,167.87,167.83,3.4]
[1752471234310,9.3753,167.86,167.82,5.9563]
[1752471234607,3.42,167.86,167.84,3.4]
[1752471234910,5.9559,167.85,167.82,3.4]
[1752471235209,9.3759,167.85,167.83,3.4]
[1752471235405,5.9559,167.85,167.83,3.4]
[1752471235601,5.9553,167.86,167.84,3.4]
[1752471236213,5.20578909,167.89,167.84,3.4]
[1752471236412,5.20578909,167.89,167.73,516.76]
[1752471236413,3.42,167.87,167.73,516.76]
[1752471236608,3.42,167.87,167.85,3.4]
[1752471236919,3.42,167.89,167.87,3.4]
[1752471238007,5.9545,167.88,167.87,3.4]
[1752471238505,5.9538,167.9,167.89,3.4]
[1752471239310,191.12,167.95,167.88,3.4]
[1752471240009,3.42,167.97,167.88,5.20578909]
[1752471240215,191.04,167.99,167.92,5.20578909]
[1752471240416,3.44,167.98,167.93,3.35]
[1752471240609,5.20578909,167.98,167.93,3.35]
[1752471240811,3.44,167.95,167.88,3.35]
[1752471241122,5.20578909,167.98,167.88,3.35]
[1752471241313,8.64578909,167.98,167.9,3.35]
[1752471241511,5.9528,167.93,167.89,5.20578909]
[1752471241712,3.44,167.94,167.87,3.35]
[1752471241913,3.44,167.96,167.89,3.35]
[1752471242309,3.44,167.98,167.93,3.35]
[1752471242510,190.98,167.99,167.93,3.35]
[1752471242711,9.3895,168.03,167.98,5.9507]
[1752471242917,3.44,168.05,167.99,3.35]
[1752471243311,5.95,168.01,167.99,3.35]
[1752471243513,5.95,168.01,168.0,3.35]
[1752471243718,3.44,168.04,168.01,3.35]
[1752471243910,3.44,168.04,168.02,3.35]
[1752471244117,3.44,168.06,168.03,3.35]
[1752471244319,3.44,168.1,168.02,5.20578909]
[1752471244617,5.9481,168.07,168.03,3.35]
[1752471245015,3.44,168.1,168.03,3.35]
[1752471246017,5.9475,168.08,168.03,3.35]
[1752471246317,5.9475,168.08,167.93,514.6]
[1752471246318,514.68,168.11,168.05,3.35]
[1752471246911,5.9468,168.1,168.05,5.9482]
[1752471247116,5.9468,168.1,168.05,3.35]
[1752471247319,3.44,168.15,168.08,5.20578909]
[1752471247518,3.44,168.15,168.09,3.35]
[1752471247519,5.9463,168.12,168.09,3.35]
[1752471247914,194.2,168.17,168.09,3.35]
[1752471248211,8.64578909,168.16,168.09,3.35]
[1752471248410,3.44,168.15,168.09,3.35]
[1752471249116,5.9455,168.14,168.1,3.35]
[1752471250112,3.44,168.15,168.08,5.20578909]
[1752471250312,3.44,168.16,168.12,3.35]
[1752471250519,3.44,168.14,168.1,3.35]
[1752471250722,3.44,168.15,168.11,3.35]
[1752471250910,190.76,168.17,168.06,3.35]
[1752471250911,5.20578909,168.14,168.06,3.35]
[1752471251118,3.44,168.13,168.06,3.35]
[1752471251322,3.44,168.1,168.06,3.35]
[1752471251519,5.20578909,168.12,168.06,3.35]
[1752471251720,3.44,168.08,168.04,3.35]
[1752471251922,5.9483,168.06,168.01,5.9496]
[1752471252127,190.5,168.1,168.02,3.35]
[1752471252320,3.44,168.09,168.02,3.35]
[1752471252523,5.9492,168.03,168.02,3.35]
[1752471252715,5.20578909,168.06,167.97,5.9511]
[1752471252922,3.44,168.05,167.98,3.35]
[1752471253225,5.9498,168.02,167.98,3.35]
[1752471253529,514.16,168.09,167.98,3.35]
[1752471253530,199.06578909,168.04,167.98,3.35]
[1752471254223,3.44,168.01,167.98,3.35]
[1752471254527,5.20578909,168.02,167.96,3.35]
[1752471254929,193.82,168.03,167.96,3.35]
[1752471255127,3.44,168.03,167.96,3.35]
[1752471255322,5.9506,168.0,167.96,3.35]
[1752471255921,5.9507,167.99,167.95,5.9519]
[1752471256127,3.44,167.99,167.97,3.35]
[1752471256522,5.9505,168.0,167.97,3.35]
[1752471256723,3.44,168.01,167.98,3.35]
[1752471256923,3.44,168.0,167.95,3.35]
[1752471257124,5.9511,167.98,167.93,3.35]
[1752471258028,9.3911,167.98,167.95,3.35]
[1752471258324,195.54578909,168.02,167.92,5.20578909]
[1752471258325,198.98578909,168.02,167.93,3.35]
[1752471258630,8.64578909,168.02,167.95,3.35]
[1752471258830,5.9506,168.0,167.95,3.35]
[1752471259027,5.9506,168.0,167.95,5.9517]
[1752471259229,5.9506,168.0,167.96,3.35]
[1752471260228,3.44,168.02,167.96,3.35]
[1752471260826,3.44,168.02,167.98,5.951]
[1752471260827,9.3896,168.02,167.98,5.951]
[1752471261028,9.3896,168.02,167.99,3.35]
[1752471261228,3.44,168.03,168.0,3.35]
[1752471261530,9.3896,168.02,168.0,3.35]
[1752471261724,193.62,168.04,167.98,3.35]
[1752471261929,3.44,168.01,167.99,3.35]
[1752471262125,9.3902,168.01,167.99,3.35]
[1752471262432,5.9502,168.01,168.0,3.35]
[1752471263634,5.9502,168.01,167.98,3.35]
[1752471263635,5.9508,167.99,167.98,3.35]
[1752471263832,3.44,168.01,167.98,3.35]
[1752471264029,3.44,168.01,167.93,5.20578909]
[1752471264234,5.9504,168.0,167.99,3.35]
[1752471264440,5.20578909,168.03,167.93,5.20578909]
[1752471264630,3.44,168.02,168.0,3.35]
[1752471264836,3.44,168.04,168.02,3.35]
[1752471265023,193.52,168.04,168.02,3.35]
[1752471265331,3.44,168.05,168.0,5.95]
[1752471265530,3.44,168.05,168.02,3.35]
[1752471266034,5.9491,168.04,168.02,3.35]
[1752471266935,5.9492,168.03,168.02,3.35]
[1752471267138,3.44,168.08,167.99,5.20578909]
[1752471267326,190.0,168.07,168.0,3.35]
[1752471267636,5.9485,168.05,168.01,5.9499]
[1752471267828,193.44,168.07,168.02,3.35]
[1752471268031,3.44,168.06,168.04,3.35]
[1752471268537,5.9485,168.05,168.04,3.35]
[1752471269037,3.44,168.04,168.02,3.35]
[1752471269425,3.44,168.04,168.0,5.95]
[1752471269426,5.9489,168.04,168.0,5.95]
[1752471269731,5.9489,168.04,168.02,3.35]
[1752471269936,5.9492,168.03,168.02,3.35]
[1752471270135,3.44,168.02,167.98,3.35]
[1752471270340,3.44,168.01,167.99,3.35]
[1752471270532,195.8698,168.02,167.98,5.9507]
[1752471270732,193.36,168.02,168.0,3.48]
[1752471271234,5.9499,168.01,168.0,3.48]
[1752471271434,193.36,168.02,168.0,3.48]
[1752471271940,5.9499,168.01,167.98,3.48]
[1752471272141,189.84,168.02,167.98,3.48]
[1752471272330,189.82,168.05,168.0,3.48]
[1752471272534,5.9493,168.03,168.0,3.48]
[1752471272738,5.9493,168.03,167.99,11.15628909]
[1752471272937,5.9493,168.03,168.02,3.48]
[1752471274139,5.9501,168.01,168.0,3.48]
[1752471274334,189.82,168.05,167.98,5.9507]
[1752471274533,3.44,168.03,168.01,3.48]
[1752471274733,3.44,168.02,167.99,3.48]
[1752471275039,3.44,168.02,168.0,3.48]
[1752471275638,5.9499,168.01,168.0,3.48]
[1752471276235,5.9493,168.03,167.99,5.9505]
[1752471276538,195.6893,168.03,168.0,3.48]
[1752471276740,189.74,168.03,167.99,5.9505]
[1752471276942,193.1,168.04,167.99,5.9505]
[1752471277133,193.1,168.04,168.02,3.48]
[1752471277134,3.42,168.04,168.02,3.48]
[1752471277335,5.9494,168.03,168.02,3.48]
[1752471277934,5.9489,168.04,167.97,5.20578909]
[1752471278136,195.6089,168.04,168.03,3.48]
[1752471278639,5.9489,168.04,168.03,3.48]
[1752471279541,5.9489,168.04,167.97,5.20578909]
[1752471279542,3.42,168.04,168.02,3.48]
[1752471280235,3.42,168.02,168.0,3.48]
[1752471280435,3.42,168.04,167.96,3.48]
[1752471280739,5.9508,167.99,167.94,3.48]
[1752471280931,3.42,168.01,167.96,5.9514]
[1752471281133,3.42,168.01,167.94,3.48]
[1752471281336,3.42,168.04,167.96,3.48]
[1752471281735,189.52,168.03,167.96,3.48]
[1752471282336,5.9501,168.01,167.99,3.48]
[1752471282540,5.9501,168.01,168.0,3.48]
[1752471284034,192.94,168.03,168.01,3.48]
[1752471284035,3.42,168.03,168.01,3.48]
[1752471284236,189.44,168.03,167.93,6.91501273]
[1752471284539,189.44,168.03,168.0,3.48]
[1752471284745,189.44,168.03,167.96,3.48]
[1752471286242,5.95,168.01,167.99,3.48]
[1752471286444,5.95,168.01,168.0,3.48]
[1752471286635,9.3701,168.01,167.97,5.9511]
[1752471286840,9.3701,168.01,167.98,3.48]
[1752471287042,9.3701,168.01,167.99,3.48]
[1752471287546,5.9503,168.0,167.99,3.48]
[1752471288936,9.37,168.01,167.99,3.48]
[1752471289444,5.95,168.01,167.95,3.48]
[1752471289843,5.9496,168.02,167.99,5.9506]
[1752471290045,192.86,168.03,168.01,3.48]
[1752471290246,3.42,168.03,168.01,3.48]
[1752471290446,192.66,168.03,168.01,3.48]
[1752471290945,3.42,168.01,167.99,3.48]
[1752471291338,192.64,168.03,168.0,3.48]
[1752471291539,192.64,168.03,167.94,7.20578909]
[1752471291540,5.9496,168.02,167.99,5.9506]
[1752471291740,5.9496,168.02,168.01,3.48]
[1752471292044,9.3696,168.02,168.01,3.48]
[1752471292442,8.62578909,168.08,168.02,3.48]
[1752471292644,4.93006014,168.1,168.04,3.48]
[1752471292838,8.35006014,168.11,168.04,3.48]
[1752471293645,5.9473,168.09,168.05,5.9483]
[1752471294152,5.9473,168.09,168.08,3.48]
[1752471295147,3.42,168.1,168.0,5.19058401]
[1752471295347,3.42,168.08,168.04,3.48]
[1752471295548,3.42,168.06,168.04,3.48]
[1752471295751,3.42,168.05,168.02,3.48]
[1752471295938,3.42,168.05,167.98,10.10559674]
[1752471295939,4.93006014,168.1,168.0,5.19058401]
[1752471296247,192.46,168.09,168.03,3.48]
[1752471296445,189.02,168.09,168.03,3.48]
[1752471296649,9.368,168.07,168.0,5.19058401]
[1752471296849,9.368,168.07,168.05,3.48]
[1752471297045,3.42,168.07,168.05,3.48]
[1752471297349,4.93006014,168.08,168.06,3.48]
[1752471297749,14.29776014,168.08,168.06,3.48]
[1752471298148,10.87776014,168.08,168.04,5.9487]
[1752471298347,5.9477,168.08,168.05,5.9484]
[1752471298549,5.9477,168.08,168.07,3.48]
[1752471298750,3.42,168.1,168.08,3.48]
[1752471298946,192.36,168.1,168.08,3.48]
[1752471299154,198.307,168.1,168.08,3.48]
[1752471300054,5.9471,168.09,168.08,3.48]
[1752471300348,188.94,168.1,168.05,3.42]
[1752471300653,4.93006014,168.14,168.09,3.42]
[1752471300854,4.93006014,168.13,168.09,3.42]
[1752471301148,3.43,168.14,168.11,3.42]
[1752471301351,193.79006014,168.15,168.07,5.19058401]
[1752471301551,3.43,168.12,168.1,3.42]
[1752471301752,3.43,168.14,168.11,3.42]
[1752471301953,3.43,168.12,168.11,3.42]
[1752471302255,3.43,168.12,168.1,3.42]
[1752471302753,3.43,168.14,168.12,3.42]
[1752471302948,188.86,168.15,168.13,3.42]
[1752471303153,192.29,168.15,168.13,3.42]
[1752471303453,3.43,168.14,168.13,3.42]
[1752471303650,9.3755,168.14,168.1,5.9464]
[1752471303853,188.86,168.15,168.12,3.42]
[1752471304055,188.86,168.15,168.11,5.9462]
[1752471304352,5.9445,168.17,168.13,5.9456]
[1752471304553,3.43,168.17,168.15,3.42]
[1752471304752,3.43,168.16,168.14,3.42]
[1752471305150,188.72,168.18,168.1,5.9464]
[1752471305352,3.43,168.17,168.14,5.19058401]
[1752471305556,188.72,168.18,168.15,3.42]
[1752471305958,188.72,168.18,168.1,7.19058401]
[1752471306162,5.9448,168.16,168.12,5.946]
[1752471306459,188.72,168.18,168.14,3.42]
[1752471306653,3.43,168.12,168.08,3.42]
[1752471306854,3.43,168.11,168.05,4.91501273]
[1752471307055,3.43,168.11,168.09,3.42]
[1752471307255,5.9468,168.1,168.09,3.42]
[1752471307659,188.62,168.12,168.06,3.42]
[1752471307966,3.43,168.16,168.09,3.42]
[1752471308266,188.58,168.15,168.09,3.42]
[1752471308468,5.9455,168.14,168.1,5.9466]
[1752471308670,5.9455,168.14,168.08,5.19058401]
[1752471308671,188.58,168.15,168.11,3.42]
[1752471308960,5.9453,168.14,168.13,3.42]
[1752471309760,5.9453,168.14,168.1,5.9464]
[1752471309761,197.955,168.15,168.14,3.42]
[1752471309964,194.525,168.15,168.14,3.42]
[1752471310267,194.445,168.15,168.14,3.42]
[1752471310570,194.445,168.15,168.08,3.42]
[1752471310571,3.43,168.14,168.08,3.42]
[1752471310766,8.62058401,168.14,168.08,3.42]
[1752471310965,8.62058401,168.14,168.06,5.9481]
[1752471310966,5.9466,168.11,168.09,3.42]
[1752471311165,3.43,168.12,168.09,3.42]
[1752471311469,3.43,168.12,168.1,3.42]
[1752471311767,3.43,168.13,168.11,3.42]
[1752471311967,5.9471,168.09,168.06,9.3681]
[1752471312168,5.9471,168.09,168.06,3.42]
[1752471313472,3.43,168.08,168.06,3.42]
[1752471314065,188.42,168.1,168.05,3.42]
[1752471314066,3.43,168.07,168.05,3.42]
[1752471314365,3.43,168.08,168.06,3.42]
[1752471315369,5.948,168.07,168.06,3.42]
[1752471317769,188.42,168.1,168.06,3.42]
[1752471317770,191.85,168.1,168.06,3.42]
[1752471318064,3.43,168.18,168.06,3.42]
[1752471318270,5.19058401,168.14,168.06,3.42]
[1752471318466,5.19058401,168.1,168.06,3.42]
[1752471318665,3.43,168.08,168.06,3.42]
[1752471320271,5.9478,168.07,168.06,3.42]
[1752471320566,3.43,168.07,168.04,3.42]
[1752471320771,3.43,168.07,168.01,5.19058401]
[1752471320772,5.9481,168.06,168.05,3.42]
[1752471321675,5.9479,168.07,168.05,3.42]
[1752471323371,5.9482,168.06,168.03,5.949]
[1752471323966,5.9482,168.06,168.04,3.42]
[1752471324969,188.28,168.1,168.04,3.42]
[1752471325174,3.43,168.11,168.04,3.42]
[1752471325365,3.43,168.11,168.06,3.42]
[1752471325568,5.9475,168.08,168.06,3.42]
[1752471326178,5.9475,168.08,168.03,5.19058401]
[1752471326476,5.9475,168.08,168.07,3.42]
[1752471327377,5.9472,168.09,168.04,3.42]
[1752471327977,5.9472,168.09,168.03,5.19058401]
[1752471327978,5.9472,168.09,168.06,3.42]
[1752471328178,9.3768,168.1,168.04,3.42]
[1752471328378,3.43,168.1,168.04,3.42]
[1752471328579,5.19058401,168.11,168.05,5.9484]
[1752471328777,3.43,168.09,168.06,3.42]
[1752471329181,5.9474,168.08,168.06,3.42]
[1752471329778,5.9474,168.08,168.07,3.42]
[1752471329971,3.43,168.09,168.08,3.42]
[1752471330180,3.43,168.11,168.1,3.42]
[1752471330990,3.43,168.11,168.09,3.41]
[1752471331574,9.3767,168.1,168.09,3.41]
[1752471334178,3.43,168.09,168.07,3.41]
[1752471334381,3.43,168.09,168.05,5.9484]
[1752471334583,9.3771,168.09,168.08,3.41]
[1752471335576,5.9469,168.1,168.08,3.41]
[1752471336085,3.43,168.12,168.05,3.41]
[1752471336282,5.9467,168.1,168.05,3.41]
[1752471337278,3.43,168.14,168.09,5.9468]
[1752471337584,3.43,168.14,168.1,3.41]
[1752471337780,5.9454,168.14,168.11,5.9461]
[1752471337978,3.43,168.16,168.09,3.41]
[1752471338380,3.43,168.14,168.09,3.41]
[1752471338580,3.43,168.13,168.09,3.41]
[1752471340283,9.3759,168.13,168.1,5.9465]
[1752471340484,9.3759,168.13,168.11,3.41]
[1752471340677,3.43,168.14,168.07,3.41]
[1752471340882,3.43,168.12,168.06,3.41]
[1752471341278,9.3769,168.1,168.07,5.9478]
[1752471341481,9.3769,168.1,168.08,3.41]
[1752471341677,5.9471,168.09,168.08,3.41]
[1752471342986,3.43,168.1,168.04,3.41]
[1752471343286,3.43,168.09,168.05,3.41]
[1752471343487,9.3773,168.09,168.05,3.41]
[1752471343683,3.43,168.09,168.05,3.41]
[1752471344081,5.9476,168.08,168.05,3.41]
[1752471344285,5.9476,168.08,168.06,3.41]
[1752471344484,5.9476,168.08,168.07,3.41]
[1752471344988,9.3771,168.09,168.07,3.41]
[1752471345193,3.43,168.09,168.08,3.41]
[1752471345683,5.9475,168.08,168.07,3.41]
[1752471346487,195.40439187,168.17,168.07,3.41]
[1752471346488,4.93006014,168.16,168.08,3.41]
[1752471346680,514.2,168.19,168.08,3.41]
[1752471346681,3.43,168.14,168.08,3.41]
[1752471346882,3.43,168.16,168.1,3.41]
[1752471347692,3.43,168.15,168.14,3.41]
[1752471348395,9.3749,168.15,168.14,3.41]
[1752471348983,3.43,168.16,168.09,5.18746504]
[1752471349185,3.43,168.18,168.12,3.41]
[1752471349585,9.3741,168.18,168.14,5.9451]
[1752471349785,5.18746504,168.2,168.16,3.41]
[1752471349992,3.43,168.19,168.16,3.41]
[1752471350391,3.43,168.19,168.06,6.54335195]
[1752471350392,3.43,168.19,168.18,3.41]
[1752471351794,3.43,168.2,168.15,3.41]
[1752471352192,5.944,168.18,168.15,3.41]
[1752471352398,3.43,168.15,168.14,3.41]
[1752471352596,5.18746504,168.19,168.14,3.41]
[1752471352597,3.43,168.18,168.14,3.41]
[1752471353300,5.9458,168.13,168.12,3.41]
[1752471353791,5.9453,168.14,168.1,5.9464]
[1752471353996,3.43,168.13,168.11,3.41]
[1752471354395,3.43,168.12,168.09,5.947]
[1752471354596,3.43,168.14,168.07,3.41]
[1752471354994,3.43,168.13,168.11,3.41]
[1752471355202,5.9456,168.14,168.12,3.41]
[1752471355399,9.3756,168.14,168.12,3.41]
[1752471355801,3.43,168.2,168.12,5.18746504]
[1752471356100,3.43,168.2,168.16,5.9444]
[1752471356302,9.3734,168.2,168.18,3.41]
[1752471356599,3.43,168.2,168.18,3.41]
[1752471356901,3.43,168.22,168.15,5.18746504]
[1752471357101,513.96,168.23,168.21,3.41]
[1752471357403,4.99560084,168.24,168.17,5.18746504]
[1752471357699,4.99560084,168.24,168.23,3.41]
[1752471357997,14.36750084,168.24,168.23,3.41]
[1752471358201,8.42560084,168.24,168.21,3.41]
[1752471358405,3.43,168.23,168.21,3.41]
[1752471358701,14.36800084,168.23,168.21,3.41]
[1752471358903,3.43,168.22,168.16,3.41]
[1752471359199,3.43,168.22,168.15,3.41]
[1752471359800,9.3737,168.19,168.17,3.41]
[1752471360197,187.02,168.2,168.12,4.97014275]
[1752471360404,3.39,168.14,168.13,3.35]
[1752471360600,3.39,168.16,168.13,3.35]
[1752471360899,3.39,168.15,168.13,3.35]
[1752471361295,3.39,168.16,168.07,12.15760779]
[1752471361602,187.02,168.2,168.11,3.35]
[1752471361603,5.18746504,168.15,168.11,3.35]
[1752471361898,3.39,168.13,168.11,3.35]
[1752471362098,5.9471,168.1,168.07,3.35]
[1752471362311,5.9471,168.1,168.08,3.35]
[1752471362312,9.3371,168.1,168.08,3.35]
[1752471362595,4.99560084,168.17,168.08,5.18746504]
[1752471362596,186.92,168.15,168.08,5.18746504]
[1752471362804,190.31,168.15,168.13,3.35]
[1752471363401,3.39,168.14,168.07,3.35]
[1752471363600,3.39,168.14,168.09,4.97014275]
[1752471363798,192.10746504,168.15,168.1,3.35]
[1752471363993,3.39,168.12,168.1,3.35]
[1752471364201,3.39,168.12,168.11,3.35]
[1752471364400,3.39,168.14,168.11,3.35]
[1752471364599,3.39,168.14,168.05,5.18746504]
[1752471364600,3.39,168.13,168.09,3.35]
[1752471365404,9.3357,168.13,168.09,9.297]
[1752471365702,9.3357,168.13,168.09,5.947]
[1752471365900,3.39,168.13,168.11,3.35]
[1752471366205,3.39,168.11,168.09,3.35]
[1752471366594,5.9467,168.1,168.09,3.35]
[1752471367001,3.39,168.1,168.04,3.35]
[1752471367600,9.3368,168.1,168.06,5.9479]
[1752471367805,9.3368,168.1,168.08,3.35]
[1752471368002,3.39,168.12,168.04,3.35]
[1752471368398,3.39,168.12,168.02,6.97014275]
[1752471368602,3.39,168.12,168.0,9.89335195]
[1752471368603,5.18746504,168.04,168.0,4.97014275]
[1752471368802,188.76,168.06,167.95,4.97014275]
[1752471369003,3.39,168.03,168.01,3.35]
[1752471369405,3.39,168.04,168.02,3.35]
[1752471369710,3.39,168.03,168.01,3.35]
[1752471370509,5.18746504,168.1,167.94,5.18746504]
[1752471370510,518.83560084,168.11,168.02,5.9495]
[1752471370706,3.39,168.09,168.03,3.35]
[1752471371398,3.39,168.09,168.04,3.35]
[1752471371598,193.80746504,168.1,168.06,3.35]
[1752471371599,3.39,168.08,168.06,3.35]
[1752471371810,3.39,168.08,168.07,3.35]
[1752471372002,192.01,168.1,168.07,3.35]
[1752471372202,3.39,168.09,168.07,3.35]
[1752471372402,5.9474,168.08,168.07,3.35]
[1752471373000,3.39,168.09,168.07,3.35]
[1752471373203,192.33,168.14,168.06,8.53746504]
[1752471373403,192.33,168.14,168.07,3.35]
[1752471373701,3.39,168.07,168.04,3.35]
[1752471373907,3.39,168.06,168.04,3.35]
[1752471374204,5.18746504,168.06,168.01,3.35]
[1752471374401,188.78,168.08,168.01,3.35]